[Event "2. Itzehoer Schach Open"]
[Site "Itzehoe, Germany"]
[Date "2023.04.29"]
[Round "2.36"]
[White "Beth, Felix"]
[Black "Baumann, Simon"]
[Result "0-1"]
[TimeControl "90 min / 40 Züge + 30 min + 30 Sek pro Zug"]
[WhiteElo "1498"]
[BlackElo "1289"]

1. d4 {[%clk 01:30:56]} {[%emt 00:00:03]} d5 {[%clk 01:30:54]} {[%emt
00:00:07]} 2. Bf4 {[%clk 01:31:21]} {[%emt 00:00:05]} Bf5 {[%clk 01:31:13]}
{[%emt 00:00:11]} 3. e3 {[%clk 01:31:47]} {[%emt 00:00:05]} e6 {[%clk
01:31:24]} {[%emt 00:00:18]} 4. Bd3 {[%clk 01:32:14]} {[%emt 00:00:03]} Bg6
{[%clk 01:31:44]} {[%emt 00:00:10]} 5. c3 {[%clk 01:32:40]} {[%emt 00:00:05]}
Bd6 {[%clk 01:31:45]} {[%emt 00:00:29]} 6. Bg3 {[%clk 01:33:05]} {[%emt
00:00:04]} Ne7 {[%clk 01:32:02]} {[%emt 00:00:13]} 7. Qc2 {[%clk 01:33:32]}
{[%emt 00:00:04]} Nbc6 {[%clk 01:30:35]} {[%emt 00:01:57]} 8. Nf3 {[%clk
01:33:57]} {[%emt 00:00:05]} O-O {[%clk 01:29:28]} {[%emt 00:01:36]} 9. Nbd2
{[%clk 01:34:08]} {[%emt 00:00:18]} Bxd3 {[%clk 01:28:25]} {[%emt 00:01:33]} 10.
Qxd3 {[%clk 01:34:34]} {[%emt 00:00:05]} Ng6 {[%clk 01:28:11]} {[%emt
00:00:44]} 11. Bxd6 {[%clk 01:34:28]} {[%emt 00:00:35]} cxd6 {[%clk 01:28:14]}
{[%emt 00:00:27]} 12. h4 {[%clk 01:34:56]} {[%emt 00:00:02]} f5 {[%clk
01:28:22]} {[%emt 00:00:22]} 13. Ng5 {[%clk 01:35:04]} {[%emt 00:00:22]} Re8
{[%clk 01:27:51]} {[%emt 00:01:01]} 14. f4 {[%clk 01:34:37]} {[%emt 00:00:57]}
Qf6 {[%clk 01:27:14]} {[%emt 00:01:07]} 15. h5 {[%clk 01:34:39]} {[%emt
00:00:28]} Nf8 {[%clk 01:27:05]} {[%emt 00:00:39]} 16. Qb5 {[%clk 01:34:14]}
{[%emt 00:00:55]} Rab8 {[%clk 01:26:47]} {[%emt 00:00:48]} 17. O-O-O {[%clk
01:33:36]} {[%emt 00:01:09]} a6 {[%clk 01:26:38]} {[%emt 00:00:39]} 18. Qb3
{[%clk 01:33:40]} {[%emt 00:00:25]} h6 {[%clk 01:26:22]} {[%emt 00:00:47]} 19.
Ngf3 {[%clk 01:33:35]} {[%emt 00:00:34]} Qe7 {[%clk 01:24:58]} {[%emt
00:01:54]} 20. Rdg1 {[%clk 01:33:52]} {[%emt 00:00:13]} b5 {[%clk 01:25:00]}
{[%emt 00:00:29]} 21. g4 {[%clk 01:33:59]} {[%emt 00:00:22]} fxg4 {[%clk
01:24:08]} {[%emt 00:01:22]} 22. Rxg4 {[%clk 01:34:18]} {[%emt 00:00:11]} Qd8
{[%clk 01:24:08]} {[%emt 00:00:30]} 23. f5 {[%clk 01:34:13]} {[%emt 00:00:36]}
a5 {[%clk 01:24:11]} {[%emt 00:00:27]} 24. fxe6 {[%clk 01:34:26]} {[%emt
00:00:16]} Ne7 {[%clk 01:24:07]} {[%emt 00:00:34]} 25. Ng5 {[%clk 01:33:18]}
{[%emt 00:01:38]} a4 {[%clk 01:23:15]} {[%emt 00:01:23]} 26. Qc2 {[%clk
01:33:44]} {[%emt 00:00:04]} Nc8 {[%clk 01:22:29]} {[%emt 00:01:16]} 27. Nf7
{[%clk 01:34:05]} {[%emt 00:00:08]} Qf6 {[%clk 01:22:15]} {[%emt 00:00:21]} 28.
Rf1 {[%clk 01:33:53]} {[%emt 00:01:05]} Qxe6 {[%emt 00:01:47]} 29. Rg3 {[%clk
01:33:38]} {[%emt 00:00:03]} Re7 {[%clk 01:21:16]} {[%emt 00:00:54]} 30. Nxh6+
{[%clk 01:33:02]} {[%emt 00:01:06]} Qxh6 {[%clk 01:21:27]} {[%emt 00:00:20]} 31.
Qf5 {[%clk 01:33:23]} {[%emt 00:00:09]} Nb6 {[%clk 01:21:13]} {[%emt 00:00:44]}
32. Rf2 {[%clk 01:32:17]} {[%emt 00:01:35]} Qh7 {[%clk 01:20:38]} {[%emt
00:01:05]} 33. Qf3 {[%clk 01:31:40]} {[%emt 00:01:07]} Nc4 {[%clk 01:19:23]}
{[%emt 00:01:45]} 34. Qxd5+ {[%clk 01:32:01]} {[%emt 00:00:07]} Kh8 {[%clk
01:19:32]} {[%emt 00:00:23]} 35. Nxc4 {[%clk 01:32:25]} {[%emt 00:00:07]} bxc4
{[%clk 01:19:48]} {[%emt 00:00:14]} 36. Qxc4 {[%clk 01:32:47]} {[%emt
00:00:08]} Qxh5 {[%clk 01:19:34]} {[%emt 00:00:43]} 37. Rff3 {[%clk 01:32:38]}
{[%emt 00:00:41]} Qh1+ {[%clk 01:18:45]} {[%emt 00:01:18]} 38. Rf1 {[%clk
01:33:00]} {[%emt 00:00:08]} Qh2 {[%clk 01:18:54]} {[%emt 00:00:21]} 39. Rgf3
{[%clk 01:30:40]} {[%emt 00:02:51]} Qxb2+ {[%clk 01:18:40]} {[%emt 00:00:43]}
40. Kd1 {[%clk 01:31:01]} {[%emt 00:00:09]} Qb1+ {[%clk 01:18:55]} {[%emt
00:00:15]} 41. Kd2 {[%clk 01:31:16]} {[%emt 00:00:15]} Rb2# {[%clk 01:18:41]}
{[%emt 00:00:13]} 0-1

[Event "2. Itzehoer Schach Open"]
[Site "Itzehoe, Germany"]
[Date "2023.04.29"]
[Round "2.14"]
[White "Thomas, Jeremy"]
[Black "Trzcielinski, Jens"]
[Result "1-0"]
[TimeControl "90 min / 40 Züge + 30 min + 30 Sek pro Zug"]
[WhiteElo "1894"]
[BlackElo "1693"]

1. e4 {[%clk 01:30:57]} {[%emt 00:00:02]} d5 {[%clk 01:30:50]} {[%emt
00:00:11]} 2. exd5 {[%clk 01:31:18]} {[%emt 00:00:09]} Nf6 {[%clk 01:31:10]}
{[%emt 00:00:09]} 3. d4 {[%clk 01:31:39]} {[%emt 00:00:09]} Bg4 {[%clk
01:31:00]} {[%emt 00:00:41]} 4. Be2 {[%clk 01:28:01]} {[%emt 00:04:09]} Bxe2
{[%clk 01:30:17]} {[%emt 00:01:11]} 5. Nxe2 {[%clk 01:28:18]} {[%emt 00:00:13]}
Qxd5 {[%clk 01:30:35]} 6. O-O {[%clk 01:28:24]} {[%emt 00:00:37]} e6 {[%clk
01:28:44]} {[%emt 00:02:21]} 7. b3 {[%clk 01:23:10]} {[%emt 00:05:44]} Bd6
{[%clk 01:25:42]} {[%emt 00:03:31]} 8. c4 {[%clk 01:19:08]} {[%emt 00:04:33]}
Qh5 {[%clk 01:21:07]} {[%emt 00:05:05]} 9. Nf4 {[%clk 01:18:24]} {[%emt
00:01:14]} Qxd1 {[%clk 01:13:27]} {[%emt 00:08:08]} 10. Rxd1 {[%clk 01:18:48]}
{[%emt 00:00:07]} O-O {[%clk 01:13:34]} {[%emt 00:00:23]} 11. Nc3 {[%clk
01:18:28]} {[%emt 00:00:51]} Nbd7 {[%clk 01:12:06]} {[%emt 00:01:57]} 12. Nb5
{[%clk 01:15:45]} {[%emt 00:03:13]} a6 {[%clk 01:09:49]} {[%emt 00:02:48]} 13.
Nxd6 {[%clk 01:15:35]} {[%emt 00:00:40]} cxd6 {[%clk 01:10:14]} {[%emt
00:00:04]} 14. Ba3 {[%clk 01:15:38]} {[%emt 00:00:26]} Ne8 {[%clk 01:07:19]}
{[%emt 00:03:26]} 15. d5 {[%clk 01:14:31]} {[%emt 00:01:38]} e5 {[%clk
01:07:06]} {[%emt 00:00:42]} 16. Nd3 {[%clk 01:12:42]} {[%emt 00:02:19]} f5
{[%clk 01:06:53]} {[%emt 00:00:42]} 17. c5 {[%clk 01:08:27]} {[%emt 00:04:47]}
dxc5 {[%clk 01:02:22]} {[%emt 00:05:01]} 18. Nxc5 {[%clk 01:08:35]} {[%emt
00:00:22]} Nxc5 {[%clk 01:02:40]} {[%emt 00:00:11]} 19. Bxc5 {[%clk 01:08:59]}
{[%emt 00:00:07]} Rf7 {[%clk 01:02:05]} {[%emt 00:01:04]} 20. f3 {[%clk
01:04:47]} {[%emt 00:04:42]} Rc8 {[%clk 01:00:27]} {[%emt 00:02:09]} 21. b4
{[%clk 01:03:21]} {[%emt 00:01:56]} Rd7 {[%clk 01:00:10]} {[%emt 00:00:46]} 22.
Rd2 {[%clk 01:02:06]} {[%emt 00:01:45]} Kf7 {[%clk 00:59:45]} {[%emt 00:00:55]}
23. Re1 {[%clk 00:58:19]} {[%emt 00:04:17]} Kf6 {[%clk 00:59:03]} {[%emt
00:01:13]} 24. g4 {[%clk 00:58:08]} {[%emt 00:00:40]} g5 {[%clk 00:58:08]}
{[%emt 00:01:24]} 25. d6 {[%clk 00:54:16]} {[%emt 00:04:23]} b6 {[%clk
00:54:45]} {[%emt 00:03:54]} 26. Bxb6 {[%clk 00:52:40]} {[%emt 00:02:06]} Rxd6
{[%clk 00:54:54]} {[%emt 00:00:20]} 27. Rxd6+ {[%clk 00:52:25]} {[%emt
00:00:46]} Nxd6 {[%clk 00:55:18]} {[%emt 00:00:05]} 28. Rd1 {[%clk 00:52:31]}
{[%emt 00:00:24]} Nf7 {[%clk 00:54:57]} {[%emt 00:00:51]} 29. gxf5 {[%clk
00:49:29]} {[%emt 00:03:32]} Kxf5 {[%clk 00:55:20]} {[%emt 00:00:07]} 30. a4
{[%clk 00:48:36]} {[%emt 00:01:24]} Rc4 {[%clk 00:53:45]} {[%emt 00:02:03]} 31.
Ba5 {[%clk 00:44:49]} {[%emt 00:04:18]} h5 {[%clk 00:51:54]} {[%emt 00:02:21]}
32. Rd7 {[%clk 00:44:03]} {[%emt 00:01:17]} Rc1+ {[%clk 00:51:05]} {[%emt
00:01:18]} 33. Kf2 {[%clk 00:44:09]} {[%emt 00:00:25]} Rc2+ {[%clk 00:50:41]}
{[%emt 00:00:53]} 34. Ke3 {[%clk 00:44:24]} {[%emt 00:00:15]} Ke6 {[%clk
00:50:40]} {[%emt 00:00:31]} 35. Ra7 {[%clk 00:44:40]} {[%emt 00:00:14]} Rc3+
{[%clk 00:50:05]} {[%emt 00:01:06]} 36. Ke2 {[%clk 00:43:48]} {[%emt 00:01:22]}
Rc6 {[%clk 00:48:14]} {[%emt 00:02:20]} 37. Bc7 {[%clk 00:36:17]} {[%emt
00:08:01]} Nd6 {[%clk 00:47:08]} {[%emt 00:01:35]} 38. Bxd6 {[%clk 00:30:21]}
{[%emt 00:06:28]} Rxd6 {[%clk 00:46:56]} {[%emt 00:00:41]} 39. b5 {[%clk
00:26:50]} {[%emt 00:04:02]} axb5 {[%clk 00:47:21]} {[%emt 00:00:05]} 40. axb5
{[%clk 00:27:13]} {[%emt 00:00:06]} Rb6 {[%clk 00:47:39]} {[%emt 00:00:12]} 41.
Ra6 {[%clk 00:27:30]} {[%emt 00:00:13]} Rxa6 {[%clk 00:45:24]} {[%emt
00:02:45]} 42. bxa6 {[%clk 00:27:59]} {[%emt 00:00:01]} Kd6 {[%clk 00:45:52]}
{[%emt 00:00:02]} 43. a7 {[%clk 00:28:28]} {[%emt 00:00:02]} 1-0

[Event "2. Itzehoer Schach Open"]
[Site "Itzehoe, Germany"]
[Date "2023.04.29"]
[Round "2.12"]
[White "Ackermann, Hans-Christian"]
[Black "Kosanke, Stefan"]
[Result "0-1"]
[TimeControl "90 min / 40 Züge + 30 min + 30 Sek pro Zug"]
[WhiteElo "1722"]
[BlackElo "1933"]

1. e4 {[%clk 01:30:55]} {[%emt 00:00:04]} e5 {[%clk 01:30:54]} {[%emt
00:00:07]} 2. Nc3 {[%clk 01:31:14]} {[%emt 00:00:11]} Nc6 {[%clk 01:30:36]}
{[%emt 00:00:48]} 3. Bc4 {[%clk 01:30:42]} {[%emt 00:01:02]} Nf6 {[%emt
00:00:52]} 4. Nge2 {[%clk 01:30:27]} {[%emt 00:00:38]} Bc5 {[%clk 01:29:55]}
{[%emt 00:00:55]} 5. h3 {[%clk 01:28:51]} {[%emt 00:02:06]} d6 {[%clk
01:28:28]} {[%emt 00:01:58]} 6. O-O {[%clk 01:27:10]} {[%emt 00:02:11]} a6
{[%clk 01:26:21]} {[%emt 00:02:38]} 7. a3 {[%clk 01:27:01]} {[%emt 00:00:39]}
O-O {[%clk 01:24:42]} {[%emt 00:02:07]} 8. Ng3 {[%clk 01:24:47]} {[%emt
00:02:44]} Nd4 {[%clk 01:23:51]} {[%emt 00:01:21]} 9. Ba2 {[%clk 01:23:53]}
{[%emt 00:01:24]} c6 {[%clk 01:22:43]} {[%emt 00:01:39]} 10. Na4 {[%clk
01:23:54]} {[%emt 00:00:29]} Ba7 {[%clk 01:22:47]} {[%emt 00:00:26]} 11. c3
{[%clk 01:24:08]} {[%emt 00:00:16]} Ne6 {[%clk 01:23:08]} {[%emt 00:00:09]} 12.
b4 {[%clk 01:22:53]} {[%emt 00:01:44]} d5 {[%clk 01:21:28]} {[%emt 00:02:11]}
13. exd5 {[%clk 01:21:36]} {[%emt 00:01:48]} cxd5 {[%clk 01:21:03]} {[%emt
00:00:53]} 14. d3 {[%clk 01:16:45]} {[%emt 00:05:22]} Qc7 {[%clk 01:20:00]}
{[%emt 00:01:32]} 15. Bd2 {[%clk 01:12:40]} {[%emt 00:04:35]} e4 {[%clk
01:18:05]} {[%emt 00:02:25]} 16. d4 {[%clk 01:12:04]} {[%emt 00:01:06]} Bd7
{[%clk 01:17:42]} {[%emt 00:00:54]} 17. Nc5 {[%clk 01:11:41]} {[%emt 00:00:51]}
Rad8 {[%clk 01:13:01]} {[%emt 00:05:12]} 18. Nh5 {[%clk 01:10:07]} {[%emt
00:02:03]} Nxh5 {[%clk 01:09:11]} {[%emt 00:04:21]} 19. Qxh5 {[%clk 01:10:18]}
{[%emt 00:00:18]} Bc6 {[%clk 01:06:15]} {[%emt 00:03:27]} 20. f4 {[%clk
01:09:41]} {[%emt 00:01:06]} Bxc5 {[%emt 00:03:34]} 21. bxc5 {[%clk 01:09:11]}
{[%emt 00:00:51]} f5 {[%clk 01:02:48]} {[%emt 00:01:03]} 22. Rae1 {[%clk
01:05:10]} {[%emt 00:04:30]} Rf6 {[%clk 01:01:06]} {[%emt 00:02:13]} 23. Qh4
{[%clk 01:00:36]} {[%emt 00:05:04]} Rdf8 {[%clk 01:00:20]} {[%emt 00:01:15]} 24.
Qf2 {[%clk 00:57:38]} {[%emt 00:03:28]} Qd7 {[%clk 00:57:48]} {[%emt 00:03:03]}
25. c4 {[%clk 00:53:51]} {[%emt 00:04:17]} Kh8 {[%clk 00:55:07]} {[%emt
00:03:11]} 26. cxd5 {[%clk 00:53:51]} {[%emt 00:00:30]} Bxd5 {[%clk 00:55:33]}
{[%emt 00:00:05]} 27. Bc3 {[%clk 00:52:20]} {[%emt 00:02:00]} h6 {[%clk
00:53:08]} {[%emt 00:02:54]} 28. Rd1 {[%clk 00:49:37]} {[%emt 00:03:14]} g5
{[%clk 00:50:50]} {[%emt 00:02:48]} 29. fxg5 {[%clk 00:49:08]} {[%emt
00:00:59]} hxg5 {[%clk 00:50:47]} {[%emt 00:00:34]} 30. Bb4 {[%clk 00:46:19]}
{[%emt 00:03:17]} R8f7 {[%clk 00:49:34]} {[%emt 00:01:43]} 31. Bc3 {[%clk
00:41:17]} {[%emt 00:05:33]} Rh7 {[%clk 00:45:02]} {[%emt 00:05:01]} 32. Bb1
{[%clk 00:38:18]} {[%emt 00:03:30]} Nf4 {[%clk 00:36:23]} {[%emt 00:09:10]} 33.
Qe3 {[%clk 00:32:42]} {[%emt 00:06:05]} Qg7 {[%clk 00:31:54]} {[%emt 00:04:59]}
34. Rf2 {[%clk 00:27:25]} {[%emt 00:05:44]} Rfh6 {[%clk 00:29:26]} {[%emt
00:03:01]} 35. Ba2 {[%clk 00:26:51]} {[%emt 00:01:04]} Qf7 {[%clk 00:27:09]}
{[%emt 00:02:47]} 36. Rdd2 {[%clk 00:23:04]} {[%emt 00:04:17]} Nxh3+ {[%clk
00:24:11]} {[%emt 00:03:28]} 37. gxh3 {[%clk 00:23:04]} {[%emt 00:00:28]} Rxh3
{[%clk 00:23:56]} {[%emt 00:00:47]} 38. Qxh3 {[%clk 00:21:23]} {[%emt
00:02:11]} Rxh3 {[%clk 00:24:16]} {[%emt 00:00:10]} 39. Bxd5 {[%clk 00:21:33]}
{[%emt 00:00:19]} Qxd5 {[%clk 00:24:28]} {[%emt 00:00:18]} 40. Rh2 {[%emt
00:00:11]} Rxh2 {[%emt 00:00:36]} 41. Rxh2+ {[%clk 00:21:08]} {[%emt 00:00:08]}
Kg7 {[%clk 00:24:46]} {[%emt 00:00:12]} 42. Rg2 {[%clk 00:20:44]} {[%emt
00:00:54]} Kf6 {[%clk 00:24:56]} {[%emt 00:00:20]} 43. Kf1 {[%clk 00:19:50]}
{[%emt 00:01:25]} Qc4+ {[%clk 00:25:14]} {[%emt 00:00:12]} 0-1

[Event "2. Itzehoer Schach Open"]
[Site "Itzehoe, Germany"]
[Date "2023.04.29"]
[Round "2.5"]
[White "Vieito, Luis-Maria"]
[Black "Helmer, Jan"]
[Result "0-1"]
[TimeControl "90 min / 40 Züge + 30 min + 30 Sek pro Zug"]
[WhiteElo "1773"]
[BlackElo "2091"]

1. e4 {[%clk 01:30:57]} {[%emt 00:00:02]} c5 {[%clk 01:19:44]} {[%emt
00:11:18]} 2. Nc3 {[%clk 01:31:11]} {[%emt 00:00:15]} Nc6 {[%clk 01:20:10]}
{[%emt 00:00:04]} 3. g3 {[%clk 01:31:29]} {[%emt 00:00:11]} g6 {[%clk
01:19:52]} {[%emt 00:00:49]} 4. Bg2 {[%clk 01:31:57]} {[%emt 00:00:02]} Bg7
{[%clk 01:20:19]} {[%emt 00:00:04]} 5. Nge2 {[%clk 01:32:16]} {[%emt 00:00:11]}
e6 {[%clk 01:20:19]} {[%emt 00:00:30]} 6. O-O {[%clk 01:32:03]} {[%emt
00:00:42]} Nge7 {[%clk 01:20:43]} {[%emt 00:00:06]} 7. d3 {[%clk 01:32:22]}
{[%emt 00:00:10]} O-O {[%clk 01:18:31]} {[%emt 00:02:43]} 8. Be3 {[%clk
01:31:21]} {[%emt 00:01:31]} Nd4 {[%clk 01:10:39]} {[%emt 00:08:22]} 9. Qd2
{[%clk 01:30:41]} {[%emt 00:01:09]} Nec6 {[%clk 01:10:20]} {[%emt 00:00:51]} 10.
Nd1 {[%clk 01:27:10]} {[%emt 00:04:00]} d6 {[%clk 01:03:05]} {[%emt 00:07:45]}
11. c3 {[%clk 01:25:22]} {[%emt 00:02:18]} Nxe2+ {[%clk 01:03:09]} {[%emt
00:00:26]} 12. Qxe2 {[%clk 01:25:50]} {[%emt 00:00:02]} b6 {[%clk 01:02:34]}
{[%emt 00:01:06]} 13. f4 {[%clk 01:20:08]} {[%emt 00:06:11]} Qc7 {[%clk
00:59:57]} {[%emt 00:03:08]} 14. Rc1 {[%clk 01:14:47]} {[%emt 00:05:50]} f5
{[%clk 00:48:21]} {[%emt 00:12:06]} 15. exf5 {[%clk 01:08:29]} {[%emt
00:06:48]} exf5 {[%clk 00:48:38]} {[%emt 00:00:14]} 16. Bd5+ {[%clk 01:08:47]}
{[%emt 00:00:11]} Kh8 {[%clk 00:49:04]} {[%emt 00:00:04]} 17. Qf3 {[%clk
01:08:55]} {[%emt 00:00:22]} Bb7 {[%clk 00:49:22]} {[%emt 00:00:12]} 18. Nf2
{[%clk 01:03:30]} {[%emt 00:05:54]} Rab8 {[%clk 00:46:36]} {[%emt 00:03:18]} 19.
h4 {[%clk 01:00:05]} {[%emt 00:03:54]} Ne7 {[%clk 00:46:50]} {[%emt 00:00:16]}
20. Bxb7 {[%clk 00:59:11]} {[%emt 00:01:23]} Qxb7 {[%clk 00:47:11]} {[%emt
00:00:10]} 21. Kg2 {[%clk 00:56:28]} {[%emt 00:03:13]} Qxf3+ {[%clk 00:46:09]}
{[%emt 00:01:33]} 22. Kxf3 {[%clk 00:56:52]} {[%emt 00:00:05]} Nc6 {[%clk
00:45:29]} {[%emt 00:01:10]} 23. h5 {[%clk 00:54:26]} {[%emt 00:02:56]} d5
{[%clk 00:45:26]} {[%emt 00:00:34]} 24. hxg6 {[%clk 00:53:57]} {[%emt
00:00:57]} hxg6 {[%clk 00:45:55]} {[%emt 00:00:02]} 25. Rh1+ {[%clk 00:52:30]}
{[%emt 00:01:57]} Kg8 {[%clk 00:46:24]} 26. d4 {[%clk 00:50:59]} {[%emt
00:02:01]} cxd4 {[%clk 00:44:35]} {[%emt 00:02:20]} 27. cxd4 {[%clk 00:51:12]}
{[%emt 00:00:17]} Rbc8 {[%clk 00:44:09]} {[%emt 00:00:57]} 28. Rcd1 {[%clk
00:48:23]} {[%emt 00:03:18]} Rfe8 {[%clk 00:40:50]} {[%emt 00:03:49]} 29. g4
{[%clk 00:46:20]} {[%emt 00:02:34]} Re6 {[%clk 00:35:50]} {[%emt 00:05:30]} 30.
gxf5 {[%clk 00:45:46]} {[%emt 00:01:02]} gxf5 {[%clk 00:36:19]} {[%emt
00:00:02]} 31. Nd3 {[%clk 00:45:03]} {[%emt 00:01:13]} Bxd4 {[%clk 00:32:39]}
{[%emt 00:04:10]} 32. Ne5 {[%clk 00:42:54]} {[%emt 00:02:39]} Bxe5 {[%clk
00:32:00]} {[%emt 00:01:07]} 33. fxe5 {[%clk 00:42:55]} {[%emt 00:00:31]} Nxe5+
{[%clk 00:32:28]} {[%emt 00:00:03]} 34. Kf4 {[%clk 00:42:55]} {[%emt 00:00:30]}
Ng6+ {[%clk 00:32:40]} {[%emt 00:00:18]} 35. Kxf5 {[%clk 00:42:59]} {[%emt
00:00:26]} Re5+ {[%clk 00:32:58]} {[%emt 00:00:11]} 0-1

[Event "2. Itzehoer Schach Open"]
[Site "Itzehoe, Germany"]
[Date "2023.04.29"]
[Round "2.19"]
[White "Zoellner, Bente"]
[Black "Wusterack, Paul"]
[Result "0-1"]
[TimeControl "90 min / 40 Züge + 30 min + 30 Sek pro Zug"]
[WhiteElo "1805"]
[BlackElo "1647"]

1. d4 {[%clk 01:30:58]} {[%emt 00:00:02]} Nf6 {[%clk 01:29:55]} {[%emt
00:01:06]} 2. Nf3 {[%clk 01:31:20]} {[%emt 00:00:07]} e6 {[%clk 01:27:05]}
{[%emt 00:03:20]} 3. c4 {[%clk 01:31:24]} {[%emt 00:00:25]} d5 {[%clk
01:27:25]} {[%emt 00:00:11]} 4. Nc3 {[%clk 01:31:37]} {[%emt 00:00:17]} Bb4
{[%clk 01:27:20]} {[%emt 00:00:35]} 5. Bg5 {[%clk 01:31:18]} {[%emt 00:00:48]}
O-O {[%clk 01:24:57]} {[%emt 00:02:54]} 6. e3 {[%clk 01:31:17]} {[%emt
00:00:31]} c6 {[%clk 01:21:36]} {[%emt 00:03:51]} 7. cxd5 {[%clk 01:28:56]}
{[%emt 00:02:51]} cxd5 {[%clk 01:18:01]} {[%emt 00:04:05]} 8. Bd3 {[%clk
01:28:46]} {[%emt 00:00:40]} Nc6 {[%clk 01:12:40]} {[%emt 00:05:52]} 9. O-O
{[%clk 01:28:16]} {[%emt 00:00:58]} Be7 {[%clk 01:12:29]} {[%emt 00:00:41]} 10.
Rc1 {[%clk 01:27:35]} {[%emt 00:01:11]} h6 {[%clk 01:12:06]} {[%emt 00:00:54]}
11. Bh4 {[%clk 01:27:52]} {[%emt 00:00:13]} a6 {[%clk 00:49:07]} {[%emt
00:23:29]} 12. a3 {[%clk 01:26:40]} {[%emt 00:01:42]} Bd7 {[%clk 00:40:40]}
{[%emt 00:08:58]} 13. b4 {[%clk 01:24:28]} {[%emt 00:02:41]} b5 {[%clk
00:37:34]} {[%emt 00:03:35]} 14. Qb3 {[%clk 01:18:12]} {[%emt 00:06:47]} Qb6
{[%clk 00:30:55]} {[%emt 00:07:09]} 15. Ne5 {[%clk 01:15:37]} {[%emt 00:03:03]}
g5 {[%clk 00:30:11]} {[%emt 00:01:15]} 16. Bg3 {[%clk 01:11:38]} {[%emt
00:04:28]} Nxe5 {[%clk 00:30:22]} {[%emt 00:00:21]} 17. Bxe5 {[%clk 01:11:10]}
{[%emt 00:00:58]} Ng4 {[%clk 00:30:12]} {[%emt 00:00:39]} 18. Bg3 {[%clk
01:09:40]} {[%emt 00:02:00]} f5 {[%clk 00:28:19]} {[%emt 00:02:23]} 19. Qd1
{[%clk 01:06:49]} {[%emt 00:03:21]} Nf6 {[%clk 00:18:21]} {[%emt 00:10:28]} 20.
Be5 {[%clk 01:00:31]} {[%emt 00:06:49]} Be8 {[%clk 00:16:14]} {[%emt 00:02:37]}
21. Qf3 {[%clk 00:54:11]} {[%emt 00:06:50]} Bg6 {[%clk 00:10:35]} {[%emt
00:06:09]} 22. Qe2 {[%clk 00:50:05]} {[%emt 00:04:36]} Ng4 {[%clk 00:07:38]}
{[%emt 00:03:27]} 23. f4 {[%clk 00:46:16]} {[%emt 00:04:18]} Nxe5 {[%clk
00:07:39]} {[%emt 00:00:29]} 24. fxe5 {[%clk 00:46:27]} {[%emt 00:00:19]} Kg7
{[%clk 00:07:00]} {[%emt 00:01:09]} 25. a4 {[%clk 00:45:42]} {[%emt 00:01:15]}
Bxb4 {[%clk 00:06:49]} {[%emt 00:00:42]} 26. axb5 {[%clk 00:44:55]} {[%emt
00:01:16]} Bxc3 {[%clk 00:05:16]} {[%emt 00:02:03]} 27. Rxc3 {[%clk 00:44:32]}
{[%emt 00:00:53]} axb5 {[%clk 00:05:10]} {[%emt 00:00:37]} 28. Bxb5 {[%clk
00:43:28]} {[%emt 00:01:34]} Rfc8 {[%clk 00:05:07]} {[%emt 00:00:33]} 29. Rfc1
{[%clk 00:40:19]} {[%emt 00:03:38]} Rxc3 {[%clk 00:05:28]} {[%emt 00:00:09]} 30.
Rxc3 {[%clk 00:40:42]} {[%emt 00:00:07]} Ra1+ {[%clk 00:05:51]} {[%emt
00:00:07]} 31. Kf2 {[%clk 00:40:48]} {[%emt 00:00:24]} Qa5 {[%clk 00:06:19]}
{[%emt 00:00:03]} 32. Rb3 {[%clk 00:37:53]} {[%emt 00:03:24]} Bh5 {[%clk
00:05:05]} {[%emt 00:01:44]} 33. Qxh5 {[%clk 00:34:28]} {[%emt 00:03:55]} Qe1+
{[%clk 00:05:24]} {[%emt 00:00:11]} 34. Kf3 {[%clk 00:34:53]} {[%emt 00:00:05]}
g4+ {[%clk 00:05:46]} {[%emt 00:00:08]} 35. Kf4 {[%clk 00:35:04]} {[%emt
00:00:19]} Qf2# {[%clk 00:06:13]} {[%emt 00:00:04]} 0-1